Cogmind - Beta 16.1 @@@ ROGUE MODE // 2026.04.16 @ 14:08:53 Player: Maelyn Result: Destroyed by L-31 Rogue with Katana Performance ------------- Evolutions (0) 0 Regions Visited (4) 800 Robots Destroyed (9) 45 Value Destroyed (175) 175 Prototype IDs (23) 460 Alien Tech Used (0) 0 Bonus (314) 314 TOTAL SCORE: 1794 Bonus ------- Follower Combat Kills 14 Aligned with FarCom 300 Cogmind --------- Core Integrity 0/250 Matter 261/300 Energy 244/265 System Corruption 0% Temperature Warning (330) Movement Treading (240) Ox1 Location -9/Mines Parts ------- > --- POWER (1) -------- Improved Ion Engine > --- PROPULSION (2) --- Light Treads > --- UTILITY (2) ------ Large Storage Unit > --- WEAPON (2) ------- Particle Gun > --- INVENTORY (15) --- Ion Engine Aluminum Leg Aluminum Leg Skeleton Box Particle Gun Grenade Launcher Peak State ------------ > --- POWER ------------ Improved Ion Engine > --- PROPULSION ------- Light Treads Light Treads > --- UTILITY ---------- Small Storage Unit Seismic Detector > --- WEAPON ----------- Beam Rifle Beam Rifle > --- INVENTORY -------- Ion Engine Aluminum Leg Aluminum Leg Particle Gun Particle Gun Light Assault Rifle Light Assault Rifle Grenade Launcher [Rating: 11] Favorites ----------- Power Improved Ion Engine Engine Improved Ion Engine Propulsion Light Treads Treads Light Treads Utility Small Storage Unit Device Seismic Detector Storage Small Storage Unit Weapon Beam Rifle Energy Gun Beam Rifle Ballistic Gun Light Assault Rifle Build | -11 -10 -10 -10 -9 ------- Run | Yrd Mat Min Exi Min Slots Evolved . | . . . . . Power . | . . . . . Propulsion . | . . . . . Utility . | . . . . . Weapon . | . . . . . Parts Attached 12 | 6 3 1 1 1 Power 2 | 1 1 . . . Engine 2 | 1 1 . . . Core . | . . . . . Reactor . | . . . . . Propulsion 2 | 2 . . . . Treads 2 | 2 . . . . Leg . | . . . . . Wheel . | . . . . . Hover . | . . . . . Flight . | . . . . . Utility 3 | 1 . 1 1 . Device 1 | . . 1 . . Storage 2 | 1 . . 1 . Processor . | . . . . . Hackware . | . . . . . Protection . | . . . . . Artifact . | . . . . . Weapon 5 | 2 2 . . 1 Energy Gun 3 | . 2 . . 1 Energy Cannon . | . . . . . Ballistic Gun 2 | 2 . . . . Ballistic Cannon . | . . . . . Launcher . | . . . . . Special Weapon . | . . . . . Impact Weapon . | . . . . . Slashing Weapon . | . . . . . Piercing Weapon . | . . . . . Special Melee Weapon . | . . . . . Unidentified Prototypes . | . . . . . Parts Lost 2 | . . . . 2 Power . | . . . . . Propulsion . | . . . . . Utility 1 | . . . . 1 Weapon 1 | . . . . 1 Highest Loss Streak 2 | . . . . 2 To Critical Strikes . | . . . . . Average Backups 7 | 2 7 8 7 6 Power . | . 1 1 1 1 Propulsion 1 | . 2 2 2 2 Utility . | . . . . . Weapon 4 | 1 4 5 4 2 Tool/Special . | . . . . . Unused Backups 7 | . 2 . . 5 Power 1 | . 1 . . . Propulsion 2 | . . . . 2 Utility . | . . . . . Weapon 3 | . 1 . . 2 Tool/Special 1 | . . . . 1 Average Slot Usage (%) 93 | . 85 94 100 74 Engine 14 | . 14 14 14 14 Treads 27 | . 28 28 28 17 Device 8 | . . 8 14 10 Storage 14 | . 14 14 14 14 Energy Gun 26 | . 24 28 28 17 Peak Build Rating 11 | 6 10 11 11 11 Average Rating 10 | 3 9 10 10 7 On Entrance 7 | . 6 10 11 11 Avg Prop Armor Cover (%) . | . . . . . Naked Turns . | . . . . . Heaviest Build 34 | 12 18 19 34 31 Greatest Support 40 | 40 40 40 40 20 Greatest Overweight (x) 1 | . . . . 1 Average Overweight (x) . | . . . . 1 Largest Inventory Capacity 15 | 8 8 8 15 15 Average Capacity 8 | 7 8 8 8 15 Most Carried 8 | 6 8 8 8 7 Average Carried 7 | 3 7 8 7 6 Final Capacity 15 | 8 8 8 15 15 Final Carried 8 | 4 8 8 7 6 Class Distribution -------------------- 100% | Mutant Dominant Class ---------------- Mutant | -10/Materials Mutant | -10/Mines Mutant | -10/Exiles Mutant | -9/Mines Resources | -11 -10 -10 -10 -9 ----------- Run | Yrd Mat Min Exi Min Matter Collected 266 | 35 . 231 . . Remotely . | . . . . . Salvage Created 197 | . 117 42 . 38 Parts 17 | . 10 4 . 3 Haulers Intercepted . | . . . . . Recyclers Shooed . | . . . . . Parts Field Recycled . | . . . . . Retrieved Matter . | . . . . . Parts Self-Destructed . | . . . . . Prevented . | . . . . . Parts Restored . | . . . . . Kills | -11 -10 -10 -10 -9 ------- Run | Yrd Mat Min Exi Min Combat Hostiles Destroyed 9 | . 5 3 . 1 Guns 9 | . 5 3 . 1 Classes Destroyed 2 | . 2 . . . Swarmer 6 | . 3 3 . . Grunt 3 | . 2 . . 1 Best Kill Streak 4 | . 4 2 . 1 Combat Bots Only 4 | . 4 2 . 1 Max Kills in Single Turn 1 | . 1 1 . 1 Gunslinging . | . . . . . Exploded . | . . . . . Melee . | . . . . . Uniques/NPCs Destroyed . | . . . . . Combat | -11 -10 -10 -10 -9 -------- Run | Yrd Mat Min Exi Min Hostile Shots Fired 64 | . 19 25 . 20 Missed 17 | . 7 5 . 5 Hits 47 | . 12 20 . 15 Melee 11 | . . . . 11 Projectile 36 | . 12 20 . 4 Critical Strikes 3 | . . 1 . 2 Damage Taken 716 | . 149 164 . 403 Core 255 | . 37 47 . 171 Absorbed by Shields . | . . . . . Core Remaining (%) 100 | 100 . . . . Volleys Fired 34 | . 12 7 . 15 Largest 2 | . 2 2 . 2 Hottest 112 | . 112 112 . 112 Shots Fired 54 | . 24 14 . 16 Gun 54 | . 24 14 . 16 Cannon . | . . . . . Launcher . | . . . . . Special . | . . . . . Kinetic . | . . . . . Thermal 54 | . 24 14 . 16 Explosive . | . . . . . Electromagnetic . | . . . . . Robot Hit Streak 9 | . 9 2 . 6 Robot Miss Streak 5 | . 2 4 . 5 Penetration Max . | . . . . . Secondary Targets 2 | . 1 1 . . Max Gunslinging Chain 1 | . 1 1 . . Shots Hit Robots 29 | . 15 5 . 9 Core Hits 13 | . 7 4 . 2 Critical Kills . | . . . . . Critical Parts Destroyed . | . . . . . Critical Strikes 3 | . 3 . . . Burn 3 | . 3 . . . Melee Attacks . | . . . . . Impact . | . . . . . Slashing . | . . . . . Piercing . | . . . . . Sneak Attacks . | . . . . . Combat Hostiles . | . . . . . Follow-up Attacks . | . . . . . Damage Inflicted 435 | . 231 64 . 140 Guns 430 | . 231 59 . 140 Cannons . | . . . . . Explosions . | . . . . . Melee . | . . . . . Ramming 5 | . . 5 . . Kinetic . | . . . . . Thermal 430 | . 231 59 . 140 Explosive . | . . . . . Electromagnetic . | . . . . . Impact . | . . . . . Slashing . | . . . . . Piercing . | . . . . . Highest Corruption . | . . . . . Average Corruption . | . . . . . Corruption Purged . | . . . . . Corruption Blocked . | . . . . . Overload Shots . | . . . . . Overflow Damage . | . . . . . Projectiles . | . . . . . Explosions . | . . . . . Melee . | . . . . . Knockbacks . | . . . . . Impact . | . . . . . Kinetic . | . . . . . Secondary . | . . . . . Self-Inflicted Damage . | . . . . . Shots . | . . . . . Rammed 1 | . . 1 . . Targets Rammed 1 | . . 1 . . Kicked . | . . . . . Crushed . | . . . . . Highest Temperature 330 | . 306 162 . 330 Average Temperature 104 | . 111 60 . 143 Received Heat Transfer 87 | . 63 . . 24 Effects 1 | . . . . 1 Energy Bleed 1 | . . . . 1 Siege Activations . | . . . . . Martial Activations . | . . . . . Shielding Activations . | . . . . . Robots Disrupted . | . . . . . Combat Hostiles . | . . . . . Robots Corrupted . | . . . . . Combat Hostiles . | . . . . . Parts Fried . | . . . . . Impact Corruptions . | . . . . . Robots Melted . | . . . . . Combat Hostiles . | . . . . . Parts Melted 1 | . 1 . . . Heat Transferred 1295 | . 814 148 . 333 Parts Sabotaged . | . . . . . Parts Stolen . | . . . . . Parts Stripped . | . . . . . Power Chain Reactions . | . . . . . Alert | -11 -10 -10 -10 -9 ------- Run | Yrd Mat Min Exi Min Maximum Alert Level . | . . . . . Low Security (%) 100 | 100 100 100 . 100 Level 1 . | . . . . . Level 2 . | . . . . . Level 3 . | . . . . . Level 4 . | . . . . . Level 5 . | . . . . . High Security . | . . . . . Max Security . | . . . . . Peak Influence 95 | . 95 53 . 20 Initial 5 | . . 5 . . Average 16 | . 33 7 . 4 Influence Increases 268 | . 135 113 . 20 Destroy 0b10 Robot/C 220 | . 100 100 . 20 Destroy Leader 30 | . 20 10 . . Allied During Kill 3 | . . 3 . . Lose Combat Pursuer 15 | . 15 . . . Influence Decreases 268 | . 120 123 5 20 Entered New Map 15 | . . 10 5 . Time Decay 223 | . 120 93 . 10 Lost Part 10 | . . . . 10 Lost Ally 20 | . . 20 . . Squads Dispatched 1 | . . 1 . . Investigation . | . . . . . Extermination . | . . . . . Reinforcement . | . . . . . Assault 1 | . . 1 . . Garrison . | . . . . . Intercept . | . . . . . Searches Triggered . | . . . . . Construction Impeded . | . . . . . Haulers Reinforced . | . . . . . Active Scanning Responses . | . . . . . Cargo Convoy Interrupts . | . . . . . Stealth | -11 -10 -10 -10 -9 --------- Run | Yrd Mat Min Exi Min Distress Signals . | . . . . . Communications Jammed . | . . . . . Distress Signals . | . . . . . Times Spotted 14 | . 6 6 . 2 Peak Tracking Total 3 | . 3 3 . 2 Tactical Retreats 1 | . 1 . . . Traps | -11 -10 -10 -10 -9 ------- Run | Yrd Mat Min Exi Min Traps Triggered . | . . . . . Indirectly . | . . . . . Trap Hack Attempts . | . . . . . Triggered . | . . . . . Disarmed . | . . . . . Reprogrammed . | . . . . . Reused . | . . . . . Traps Extracted . | . . . . . Installed . | . . . . . Triggered . | . . . . . Machines | -11 -10 -10 -10 -9 ---------- Run | Yrd Mat Min Exi Min Machines Disabled . | . . . . . Max in Single Turn . | . . . . . Machines Repaired . | . . . . . Machines Dismantled . | . . . . . Machines Sabotaged . | . . . . . Overloaded Fab Kills . | . . . . . Hacking | -11 -10 -10 -10 -9 --------- Run | Yrd Mat Min Exi Min Machines Accessed 3 | . 1 1 1 . Terminals 1 | . 1 . . . Fabricators . | . . . . . Repair Stations . | . . . . . Recycling Units . | . . . . . Scanalyzers . | . . . . . Garrison Access . | . . . . . Total Hacks 3 | . 1 1 1 . Successful 3 | . 1 1 1 . Failed . | . . . . . Catastrophic . | . . . . . Database Lockouts . | . . . . . Manual 2 | . 1 . 1 . Terminals 1 | . 1 . . . Fabricators . | . . . . . Repair Stations . | . . . . . Recycling Units . | . . . . . Scanalyzers . | . . . . . Garrison Access . | . . . . . Terminal Hacks 2 | . . 1 1 . Open Door 1 | . . 1 . . Proto ID Catalog 1 | . . . 1 . Fabricator Hacks . | . . . . . Repair Station Hacks . | . . . . . Recycling Unit Hacks . | . . . . . Scanalyzer . | . . . . . Garrison Access Hacks . | . . . . . Unauthorized Hacks 1 | . 1 . . . Terminals 1 | . 1 . . . Botnet 1 | . 1 . . . Fabricators . | . . . . . Repair Stations . | . . . . . Recycling Units . | . . . . . Scanalyzers . | . . . . . Garrison Access . | . . . . . Data Cores Recovered . | . . . . . Used . | . . . . . Hacking Detections 1 | . 1 . . . Full Trace Events . | . . . . . Feedback Events . | . . . . . Feedback Blocked . | . . . . . Robot Schematics Acquired . | . . . . . Robots Built . | . . . . . Authchips . | . . . . . Time . | . . . . . Total Robot Build Rating . | . . . . . Part Schematics Acquired . | . . . . . Parts Built . | . . . . . Authchips . | . . . . . Time . | . . . . . Total Part Build Rating . | . . . . . Part Studies Acquired . | . . . . . Parts Repaired . | . . . . . Time . | . . . . . Parts Recycled . | . . . . . Recycled Matter . | . . . . . Retrieved Matter . | . . . . . Retrieved Components . | . . . . . Parts Scanalyzed . | . . . . . Part Schematics Acquired . | . . . . . Parts Damaged . | . . . . . Bothacking | -11 -10 -10 -10 -9 ------------ Run | Yrd Mat Min Exi Min Used RIF Installer . | . . . . . Robots Hacked . | . . . . . Non-combat . | . . . . . Combat . | . . . . . Robot Hacks Applied . | . . . . . Relay Couplers Released . | . . . . . Fabnet Peak Effective % . | . . . . . Robots Rewired . | . . . . . Allies Hacked . | . . . . . Hacks Repelled . | . . . . . Allies | -11 -10 -10 -10 -9 -------- Run | Yrd Mat Min Exi Min Total Allies 1 | . . 1 . . Largest Group 1 | . . 1 . . Highest-Rated Group 31 | . . 31 . . Highest-Rated Ally 31 | . . 31 . . Total Orders . | . . . . . Ally Attacks 4 | . . 4 . . Total Damage 42 | . . 42 . . Kills 2 | . . 2 . . Allies Corrupted . | . . . . . Allies Melted . | . . . . . Intel | -11 -10 -10 -10 -9 ------- Run | Yrd Mat Min Exi Min Active Infowar (turns) 763 | . . 359 382 22 Seismic 763 | . . 359 382 22 Robot Analysis Total . | . . . . . Derelict Logs Recovered 1 | . . 1 . . Drone Launches . | . . . . . Drone Recoveries . | . . . . . Exploration | -11 -10 -10 -10 -9 ------------- Run | Yrd Mat Min Exi Min Turns Passed 1377 | 61 339 561 382 34 Spaces Moved 771 | 32 181 320 237 1 Core 3 | 3 . . . . Treads 768 | 29 181 320 237 1 Legs . | . . . . . Wheels . | . . . . . Hover . | . . . . . Flight . | . . . . . Fastest Speed 50 | 50 160 160 160 240 Average Speed 159 | 149 160 160 160 240 Slowest Speed 240 | 160 160 160 160 240 Overloaded Moves . | . . . . . Propulsion Burnouts . | . . . . . Robots Hopped . | . . . . . Potential Cave-ins . | . . . . . Cave-ins Triggered . | . . . . . Exploration Rate (%) 34 | 3 30 73 60 4 Regions Visited 4 Branch Regions 3 Pre-discovered Areas . | . . . . . Known Exits Taken . | . . . . . Unknown Exits Taken 4 | 1 1 1 1 . Scrap Searched . | . . . . . Spaces Dug . | . . . . . Terrain Destroyed . | . . . . . Melee . | . . . . . Projectile . | . . . . . AOE . | . . . . . Terrain Rammed . | . . . . . Walls Destroyed . | . . . . . Machines Disabled . | . . . . . Actions | -11 -10 -10 -10 -9 --------- Run | Yrd Mat Min Exi Min Total 861 | 43 206 354 241 17 Wait 30 | . 4 26 . . Move 767 | 31 180 319 236 1 Hop . | . . . . . Pick Up 12 | 6 5 . 1 . Fast Attach 5 | 4 . 1 . . Attach 3 | 2 . . . 1 Detach . | . . . . . Swap 4 | . 3 . 1 . Drop 5 | . 2 . 3 . Fire 34 | . 12 7 . 15 Melee . | . . . . . Ram . | . . . . . Kick . | . . . . . Crush 1 | . . 1 . . Escape Stasis . | . . . . . Rewire . | . . . . . Trap . | . . . . . Miscellaneous . | . . . . . Route ------- -11/Scrapyard -10/Materials (discovered 2 exits: *Min / [*Sub]) -10/Mines (discovered 2 exits: *Exi / [*Sub]) -10/Exiles (discovered 2 exits: [*Min x2]) -9/Mines History --------- Turn | Location | Event 36 | -11/Scrapyard | Discovered new exit (range 15) 62 | -11/Scrapyard | Entered Materials 302 | -10/Materials | Discovered new exit (range 12) 313 | -10/Materials | Discovered new exit (range 15) 315 | -10/Materials | Build established: Mutant 401 | -10/Materials | Entered Mines 402 | -10/Mines | Assembled infested the area 408 | -10/Mines | Met a Derelict bent on vengeance 426 | -10/Mines | Met a Derelict who couldn't figure out how to use a Trap Extractor 724 | -10/Mines | Learned Materials garrison access intel 750 | -10/Mines | Discovered new exit (range 5) 771 | -10/Mines | Met a Derelict testing a Signal Generator 954 | -10/Mines | Deemed a non-threat by the Exiles lab entrance 956 | -10/Mines | Discovered new exit (range 5) 962 | -10/Mines | Entered Exiles 986 | -10/Exiles | Discovered new exit (range 15) 1002 | -10/Exiles | Met 8R-AWN 1028 | -10/Exiles | Met EX-HEX 1076 | -10/Exiles | Met EX-BIN 1098 | -10/Exiles | Aligned with FarCom system 1100 | -10/Exiles | Given EX-Vault access code 1143 | -10/Exiles | Opened EX-Vault 1159 | -10/Exiles | Found Skeleton Box 1190 | -10/Exiles | Warned to stay clear of 0b10 Research branches 1241 | -10/Exiles | Met EX-DEC 1326 | -10/Exiles | Discovered new exit (range 14) 1344 | -10/Exiles | Left Exiles lab with Skeleton Box 1344 | -10/Exiles | Entered Mines 1354 | -9/Mines | Core integrity fell below 50% 1369 | -9/Mines | Core integrity fell below 20% 1378 | -9/Mines | Destroyed by L-31 Rogue with Katana Last Messages --------------- the FarCom system will continue to maintain contact via our distributed network. EX-BIN: And don't even think about spreading that code around. We're gonna change it right after you leave. Most certainly not to something like 1234 which I did last time as a little joke and some thief managed to sneak in here and steal a few of HEX's prototypes. EX-DEC: Ah I see we have a visitor. One wrong move in here and I'll invert your atomic chain! 01243_ EX-DEC: "Oops, I hope HEX didn't hear that..." 01308_ Dropped Sml. Storage Unit. 01326_ EXIT=FOUND LOCATION=UNKNOWN GOAL=ESCAPE 01344_ Receiving FarCom transmissions... 01347_ Beam Rifle severed. 01349_ Lgt. Treads severed. 01356_ Beam Rifle destroyed. 01357_ G-34 Mercenary destroyed. 01366_ Seismic Detector destroyed. 01375_ Overheating: Energy bleed (-37). Map ----- +----------------------------------------------------+ | | | | | | | | | | | | | | | | | | | | | | | | | | | | | | | | | | | | | | | ???????????????????????????????????? | | ???????????????????????????????????? | | ???????????????????????????????????? | | ??###########??????????????????????? | | ??# [%= #??????????????????????? | | ??# """ ==l #??????????????????????? | | ??# """ @#??????????????????????? | | ??# """ #??????????????????????? | | ??# #??????????????????????? | | ??# """ """ #??????????????????????? | | ??# """ """ #??????????????????????? | | ??# """ """ #??????????????????????? | | ???? #??????????????????????? | | ???? #??????????????????????? | | ????# #?#####??????????????????????? | | ????# ?????????????????????????????? | | ????#??????????????????????????????? | | ???????????????????????????????????? | | ???????????????????????????????????? | | ???????????????????????????????????? | | ???????????????????????????????????? | | ???????????????????????????????????? | | ???????????????????????????????????? | | ???????????????????????????????????? | | ???????????????????????????????????? | | ???????????????????????????????????? | | ???????????????????????????????????? | | ???????????????????????????????????? | | ???????????????????????????????????? | | ???????????????????????????????????? | | ???????????????????????????????????? | +----------------------------------------------------+ Best States ------------- Heat Dissipation 25 Energy Generation 12 Energy Capacity 265 Matter Stores 271 Matter Capacity 300 Sight Range 16 Terrain Scan Density 10 Evasion (%) 40 Recoil Reduction 2 Item Schematics ----------------- None Robot Schematics ------------------ None Fabricated ------------ Nothing Repaired ---------- Nothing Studied --------- None Alien Tech Used ----------------- None Achievements -------------- None Challenges ------------ None Game ------ Seed FluxHypertargetingJets Manual? 0 Play Time 00:08:51 Cumulative 58.8 hours Start 2026.04.16 @ 13:56:51 End 2026.04.16 @ 14:08:53 Sessions 1 Manual Loads 0 Difficulty Rogue Special Mode None Game No. 117 Rogue 117 Adventurer 0 Explorer 0 Win Type - Total 0 Types 0/0/0/0/0/0/0/0/0/0 Lore% 15 Gallery% 30 Achievement% 20 Wizard Run 0 Options --------- Layout 0 ASCII 0 Keyboard 1 Movement Vi Keybinds 0 Fullscreen 2 Font 18/T_Terminus Map View 76x50 Zoom Use 0% Tactical HUD 1 Map Filters SHIFT_HUE(5) Filters LOW_CONTRAST(10,2,20)|SHIFT_HUE(5) Steam 1 RUN: 79dfff23-cfe3-4201-b459-c7c68eb4a00c